Cogmind - Beta 14 @@@ ROGUE MODE // 2024.08.15 @ 14:10:14 Player: Zaros426 Result: Destroyed by 8R-AWN with 8R-AWN's Boregun Performance ------------- Evolutions (0) 0 Regions Visited (3) 600 Robots Destroyed (36) 180 Value Destroyed (519) 519 Prototype IDs (2) 40 Alien Tech Used (0) 0 Bonus (0) 0 TOTAL SCORE: 1339 Bonus ------- None Cogmind --------- Core Integrity 0/250 Matter 187/300 Energy 98/100 System Corruption 9% Temperature Cool (0) Movement Core (50) Location -10/Exiles Parts ------- > --- POWER (1) -------- (None) > --- PROPULSION (2) --- (None) > --- UTILITY (2) ------ Improved Targeting Computer > --- WEAPON (2) ------- Makeshift Hammer > --- INVENTORY (5) ---- Improved Heat Sink High-capacity Storage Unit EM Shotgun Rocket Launcher Rocket Launcher Peak State ------------ > --- POWER ------------ (None) > --- PROPULSION ------- Light Treads Light Treads > --- UTILITY ---------- Large Storage Unit Improved Targeting Computer > --- WEAPON ----------- EM Shotgun Makeshift Hammer > --- INVENTORY -------- Wheel Improved Heat Sink Large Storage Unit High-capacity Storage Unit Structural Scanner Structural Scanner Seismic Detector EM Shotgun Grenade Launcher Rocket Launcher Rocket Launcher Rocket Launcher Rocket Launcher Rocket Launcher Hammer [Rating: 13] Favorites ----------- Power Ion Engine Engine Ion Engine Propulsion Light Treads Treads Light Treads Wheel Wheel Utility Improved Targeting Computer Device Seismic Detector Storage Large Storage Unit Processor Improved Targeting Computer Weapon EM Shotgun Energy Gun EM Shotgun Launcher Rocket Launcher Impact Weapon Makeshift Hammer Build | -11 -10 -10 -10 ------- Run | Yrd Mat Min Exi Slots Evolved . | . . . . Power . | . . . . Propulsion . | . . . . Utility . | . . . . Weapon . | . . . . Parts Attached 22 | 7 6 4 5 Power 1 | 1 . . . Engine 1 | 1 . . . Core . | . . . . Reactor . | . . . . Propulsion 3 | 2 . . 1 Treads 2 | 2 . . . Leg . | . . . . Wheel 1 | . . . 1 Hover . | . . . . Flight . | . . . . Utility 6 | 2 4 . . Device 1 | 1 . . . Storage 4 | 1 3 . . Processor 1 | . 1 . . Hackware . | . . . . Protection . | . . . . Artifact . | . . . . Weapon 12 | 2 2 4 4 Energy Gun 6 | 2 2 1 1 Energy Cannon . | . . . . Ballistic Gun . | . . . . Ballistic Cannon . | . . . . Launcher 4 | . . 3 1 Special Weapon . | . . . . Impact Weapon 2 | . . . 2 Slashing Weapon . | . . . . Piercing Weapon . | . . . . Special Melee Weapon . | . . . . Unidentified Prototypes . | . . . . Parts Lost 6 | . . 3 3 Power 1 | . . 1 . Propulsion 3 | . . . 3 Utility . | . . . . Weapon 2 | . . 2 . Highest Loss Streak 3 | . . 1 3 To Critical Strikes 2 | . . . 2 Average Slot Usage (%) 96 | . 99 95 81 Engine 11 | . 14 10 . Treads 27 | . 28 28 23 Device 1 | . 2 . . Storage 13 | . 14 14 13 Processor 12 | . 11 14 14 Energy Gun 19 | . 27 10 1 Launcher 7 | . . 17 21 Peak Build Rating 13 | 7 11 12 13 Average Rating 10 | 5 10 11 10 On Entrance 7 | . 7 11 11 Naked Turns . | . . . . Heaviest Build 91 | 15 91 33 28 Greatest Support 40 | 40 40 40 40 Greatest Overweight (x) 2 | . 2 . 2 Average Overweight (x) . | . . . . Largest Inventory Capacity 25 | 8 25 15 15 Average Capacity 14 | 7 15 15 14 Most Carried 15 | 1 12 15 15 Average Carried 10 | . 8 13 14 Final Capacity 15 | 8 15 15 5 Final Carried 15 | 1 12 15 5 Class Distribution -------------------- 100% | Mutant Dominant Class ---------------- Mutant | -10/Materials Mutant | -10/Mines Mutant | -10/Exiles Resources | -11 -10 -10 -10 ----------- Run | Yrd Mat Min Exi Matter Collected 593 | 270 37 271 15 Remotely . | . . . . Salvage Created 908 | 117 677 107 7 Parts 69 | 9 44 16 . Haulers Intercepted 2 | . 2 . . Recyclers Shooed . | . . . . Parts Field Recycled . | . . . . Retrieved Matter . | . . . . Parts Self-Destructed . | . . . . Prevented . | . . . . Kills | -11 -10 -10 -10 ------- Run | Yrd Mat Min Exi Combat Hostiles Destroyed 30 | . 14 9 7 Melee 1 | . . . 1 Guns 19 | . 14 5 . AOE 10 | . . 4 6 Classes Destroyed 10 | 3 5 1 1 Worker 2 | 1 1 . . Tunneler 3 | 2 . 1 . Hauler 2 | . 2 . . Recycler 2 | 1 1 . . Operator 1 | . 1 . . Watcher 3 | . 3 . . Swarmer 17 | . 9 8 . Grunt 5 | . 5 . . Demolisher 1 | . . 1 . Assembled 7 | . . . 7 Best Kill Streak 6 | 2 5 3 6 Combat Bots Only 6 | . 3 3 6 Max Kills in Single Turn 3 | 1 2 2 3 Gunslinging 1 | . 1 . . Exploded 3 | . . 2 3 Melee 1 | . . . 1 Uniques/NPCs Destroyed . | . . . . Combat | -11 -10 -10 -10 -------- Run | Yrd Mat Min Exi Hostile Shots Fired 108 | . 36 24 48 Missed 30 | . 10 6 14 Damage Taken 1007 | . 279 192 536 Core 257 | . 53 37 167 Absorbed by Shields . | . . . . Core Remaining (%) 100 | 100 . . . Volleys Fired 76 | 9 41 19 7 Largest 2 | 2 2 2 2 Hottest 100 | 100 100 90 66 Shots Fired 142 | 18 83 32 9 Gun 120 | 18 83 17 2 Cannon . | . . . . Launcher 22 | . . 15 7 Special . | . . . . Kinetic . | . . . . Thermal 30 | 18 12 . . Explosive 22 | . . 15 7 Electromagnetic 90 | . 71 17 2 Robot Hit Streak 11 | 5 11 9 4 Robot Miss Streak 6 | 3 4 6 4 Penetration Max . | . . . . Secondary Targets 2 | . 2 . . Max Gunslinging Chain 1 | . 1 . . Shots Hit Robots 91 | 10 55 19 7 Core Hits 75 | 5 31 25 14 Critical Kills . | . . . . Critical Parts Destroyed 1 | . . . 1 Critical Strikes 1 | . . . 1 Smash 1 | . . . 1 Melee Attacks 10 | . . . 10 Impact 10 | . . . 10 Slashing . | . . . . Piercing . | . . . . Sneak Attacks . | . . . . Combat Hostiles . | . . . . Follow-up Attacks 2 | . . . 2 Damage Inflicted 2292 | 127 899 521 745 Guns 1017 | 127 817 73 . Cannons . | . . . . Explosions 1063 | . 81 448 534 Melee 211 | . . . 211 Ramming 1 | . 1 . . Kinetic . | . . . . Thermal 297 | 127 170 . . Explosive 982 | . . 448 534 Electromagnetic 801 | . 728 73 . Impact 211 | . . . 211 Slashing . | . . . . Piercing . | . . . . Highest Corruption 9 | . 4 4 9 Average Corruption 3 | . 2 4 4 Corruption Purged . | . . . . Corruption Blocked . | . . . . Effects 41 | . 19 16 6 Message Errors 13 | . 8 4 1 Matter Fused 9 | . 2 5 2 Heat Flow Errors 6 | . 3 2 1 Energy Discharges 1 | . 1 . . Parts Fused 2 | . 1 1 . Data Loss (minor) 4 | . 2 2 . Data Loss (major) 1 | . . 1 . Misfires 3 | . 1 1 1 Alerts 1 | . 1 . . Weapon Failures 1 | . . . 1 Overload Shots . | . . . . Overflow Damage 94 | . 10 8 76 Projectiles . | . . . . Explosions 48 | . 10 8 30 Melee 46 | . . . 46 Knockbacks 4 | . . . 4 Impact 4 | . . . 4 Kinetic . | . . . . Secondary . | . . . . Self-Inflicted Damage 56 | . 11 45 . Shots 3 | . 1 2 . Rammed 1 | . 1 . . Targets Rammed 1 | . 1 . . Kicked . | . . . . Crushed . | . . . . Highest Temperature 295 | 78 251 295 256 Average Temperature 71 | 37 70 80 142 Received Heat Transfer 105 | . 105 . . Effects 2 | . . 2 . Energy Bleed 1 | . . 1 . Interference 1 | . . 1 . Siege Activations . | . . . . Robots Corrupted 1 | . 1 . . Combat Hostiles . | . . . . Parts Fried 3 | . 3 . . Impact Corruptions 1 | . . . 1 Robots Melted . | . . . . Combat Hostiles . | . . . . Parts Melted . | . . . . Heat Transferred 729 | 370 359 . . Parts Sabotaged . | . . . . Parts Stolen . | . . . . Parts Stripped . | . . . . Power Chain Reactions 2 | . 2 . . Alert | -11 -10 -10 -10 ------- Run | Yrd Mat Min Exi Peak Influence 224 | 20 215 224 . Initial 13 | . 13 11 . Average 60 | 7 68 55 . Maximum Alert Level 1 | . 1 1 . Low Security (%) 97 | 100 98 94 . Level 1 2 | . 1 5 . Level 2 . | . . . . Level 3 . | . . . . Level 4 . | . . . . Level 5 . | . . . . High Security . | . . . . Max Security . | . . . . Squads Dispatched 4 | . 4 . . Investigation 3 | . 3 . . Extermination . | . . . . Reinforcement 1 | . 1 . . Assault . | . . . . Garrison . | . . . . Intercept . | . . . . Searches Triggered . | . . . . Construction Impeded . | . . . . Haulers Reinforced . | . . . . Active Scanning Responses . | . . . . Cargo Convoy Interrupts . | . . . . Stealth | -11 -10 -10 -10 --------- Run | Yrd Mat Min Exi Distress Signals 1 | . 1 . . Communications Jammed . | . . . . Distress Signals . | . . . . Times Spotted 45 | . 22 16 7 Peak Tracking Total 9 | . 3 8 9 Tactical Retreats 1 | . 1 . . Traps | -11 -10 -10 -10 ------- Run | Yrd Mat Min Exi Traps Triggered 3 | . 3 . . Indirectly . | . . . . Trap Hack Attempts . | . . . . Triggered . | . . . . Disarmed . | . . . . Reprogrammed . | . . . . Reused . | . . . . Traps Extracted . | . . . . Installed . | . . . . Triggered . | . . . . Machines | -11 -10 -10 -10 ---------- Run | Yrd Mat Min Exi Machines Disabled 5 | . 1 . 4 Max in Single Turn 2 | . 1 . 2 Machines Repaired . | . . . . Machines Dismantled . | . . . . Machines Sabotaged . | . . . . Overloaded Fab Kills . | . . . . Hacking | -11 -10 -10 -10 --------- Run | Yrd Mat Min Exi Machines Accessed 6 | . 6 . . Terminals 6 | . 6 . . Fabricators . | . . . . Repair Stations . | . . . . Recycling Units . | . . . . Scanalyzers . | . . . . Garrison Access . | . . . . Total Hacks 15 | . 15 . . Successful 5 | . 5 . . Failed 10 | . 10 . . Catastrophic 3 | . 3 . . Database Lockouts . | . . . . Manual 7 | . 7 . . Terminals 15 | . 15 . . Fabricators . | . . . . Repair Stations . | . . . . Recycling Units . | . . . . Scanalyzers . | . . . . Garrison Access . | . . . . Terminal Hacks 4 | . 4 . . Prototype ID Bank 1 | . 1 . . Branch Access Points 1 | . 1 . . Investigation Status 1 | . 1 . . Recall Investigation 1 | . 1 . . Fabricator Hacks . | . . . . Repair Station Hacks . | . . . . Recycling Unit Hacks . | . . . . Scanalyzer . | . . . . Garrison Access Hacks . | . . . . Unauthorized Hacks 1 | . 1 . . Terminals 1 | . 1 . . Botnet 1 | . 1 . . Fabricators . | . . . . Repair Stations . | . . . . Recycling Units . | . . . . Scanalyzers . | . . . . Garrison Access . | . . . . Data Cores Recovered 1 | . 1 . . Used 1 | . 1 . . Hacking Detections 5 | . 5 . . Full Trace Events 2 | . 2 . . Feedback Events 1 | . 1 . . Corruption 1 | . 1 . . Feedback Blocked . | . . . . Robot Schematics Acquired . | . . . . Robots Built . | . . . . Authchips . | . . . . Time . | . . . . Total Robot Build Rating . | . . . . Part Schematics Acquired . | . . . . Parts Built . | . . . . Authchips . | . . . . Time . | . . . . Total Part Build Rating . | . . . . Parts Repaired . | . . . . Time . | . . . . Parts Recycled . | . . . . Recycled Matter . | . . . . Retrieved Matter . | . . . . Retrieved Components . | . . . . Parts Scanalyzed . | . . . . Part Schematics Acquired . | . . . . Parts Damaged . | . . . . Bothacking | -11 -10 -10 -10 ------------ Run | Yrd Mat Min Exi Used RIF Installer . | . . . . Robots Hacked . | . . . . Non-combat . | . . . . Combat . | . . . . Robot Hacks Applied . | . . . . Relay Couplers Released . | . . . . Fabnet Peak Effective % . | . . . . Robots Rewired . | . . . . Allies Hacked . | . . . . Hacks Repelled . | . . . . Allies | -11 -10 -10 -10 -------- Run | Yrd Mat Min Exi Total Allies 2 | . . 2 . Largest Group 2 | . . 2 . Highest-Rated Group 42 | . . 42 . Highest-Rated Ally 31 | . . 31 . Total Orders . | . . . . Ally Attacks 5 | . . 5 . Total Damage 22 | . . 22 . Kills 1 | . . 1 . Allies Corrupted . | . . . . Allies Melted . | . . . . Intel | -11 -10 -10 -10 ------- Run | Yrd Mat Min Exi Robot Analysis Total . | . . . . Derelict Logs Recovered 1 | . . 1 . Drone Launches . | . . . . Drone Recoveries . | . . . . Exploration | -11 -10 -10 -10 ------------- Run | Yrd Mat Min Exi Turns Passed 2641 | 124 1440 853 224 Spaces Moved 1326 | 59 644 492 131 Core 25 | 7 . . 18 Treads 1286 | 52 644 492 98 Legs . | . . . . Wheels 15 | . . . 15 Hover . | . . . . Flight . | . . . . Fastest Speed 50 | 50 160 160 50 Average Speed 173 | 146 193 160 139 Slowest Speed 320 | 160 320 160 160 Overloaded Moves . | . . . . Propulsion Burnouts . | . . . . Robots Hopped . | . . . . Cave-ins Triggered . | . . . . Exploration Rate (%) 55 | 4 95 83 38 Regions Visited 3 Branch Regions 2 Pre-discovered Areas . | . . . . Known Exits Taken 1 | . 1 . . Unknown Exits Taken 2 | 1 . 1 . Scrap Searched 3 | . . 3 . Spaces Dug . | . . . . Terrain Destroyed 96 | . 6 70 20 Melee . | . . . . Projectile . | . . . . AOE 96 | . 6 70 20 Terrain Rammed . | . . . . Walls Destroyed . | . . . . Machines Disabled . | . . . . Actions | -11 -10 -10 -10 --------- Run | Yrd Mat Min Exi Total 1510 | 75 755 526 154 Wait 48 | . 41 7 . Move 1323 | 58 643 491 131 Hop . | . . . . Pick Up 21 | 1 15 5 . Fast Attach 9 | 7 2 . . Attach 4 | . . 2 2 Detach . | . . . . Swap 9 | . 4 2 3 Drop 11 | . 8 . 3 Fire 76 | 9 41 19 7 Melee 8 | . . . 8 Ram . | . . . . Kick . | . . . . Crush 1 | . 1 . . Escape Stasis . | . . . . Rewire . | . . . . Trap . | . . . . Miscellaneous . | . . . . Route ------- -11/Scrapyard -10/Materials (discovered 4 exits: [*Mat x3] / *Min) -10/Mines (discovered 4 exits: [*Mat x2] / [*Exi] / [*Sub]) -10/Exiles History --------- Turn | Location | Event 8 | -11/Scrapyard | Discovered new exit (range 15) 125 | -11/Scrapyard | Entered Materials 316 | -10/Materials | Build established: Mutant 420 | -10/Materials | Discovered new exit (range 14) 601 | -10/Materials | Discovered new exit (range 15) 962 | -10/Materials | Discovered new exit (range 8) 992 | -10/Materials | Identified exit to Mines 1171 | -10/Materials | Discovered new exit (range 8) 1565 | -10/Materials | Entered Mines 1604 | -10/Mines | Learned location of 1 exit from Materials 1753 | -10/Mines | Received a Rocket Launcher from a helpful Derelict 1898 | -10/Mines | Assembled infested the area 1953 | -10/Mines | Discovered new exit (range 7) 1975 | -10/Mines | A weapon hastily lodged in a ceiling crevice suddenly fell to the ground 2176 | -10/Mines | Discovered new exit (range 9) 2319 | -10/Mines | Discovered new exit (range 9) 2412 | -10/Mines | Discovered new exit (range 5) 2418 | -10/Mines | Entered Exiles 2458 | -10/Exiles | Met 8R-AWN 2484 | -10/Exiles | Met EX-HEX 2535 | -10/Exiles | Met EX-BIN 2552 | -10/Exiles | Attacked by the Exiles 2614 | -10/Exiles | Core integrity fell below 50% 2635 | -10/Exiles | Core integrity fell below 20% 2642 | -10/Exiles | Destroyed by 8R-AWN with 8R-AWN's Boregun Last Messages --------------- 02625_ Penetrated by HV Slug. 02625_ HV Slug penetrates Wall. 02625_ Penetrated by HV Slug. 02625_ HV Slug penetrates Wall. 02625_ 8R-AWN knocked back. 02626_ The unstable cave ceiling collapses. 02627_ HV Slug penetrates Wall. 02629_ Penetrated by HV Slug. 02629_ HV Slug penetrates Earth. 02630_ Hammer follow-up attack on 8R-AWN. 02630_ 8R-AWN knocked back. 02631_ Penetrated by HV Slug. 02631_ Critical hit (Destroy). 02631_ Wheel destroyed. 02633_ Dropped Lrg. Storage Unit. 02633_ Dropped Hammer. 02634_ Penetrated by HV Slug. 02638_ HV Slug penetrates Wall. 02638_ HV Slug penetrates Machine. 02640_ Penetrated by HV Slug. Map ----- +----------------------------------------------------+ | | | ?????????????????????????????????????????????????? | | ?????????????????????????????????????????????????? | | ?????????????????????????????????????????????????? | | ?????????????????????????????????????????????????? | | ?????????????????????????????????????????????????? | | ?????????????????????????????????????????????????? | | ?????????????????????????????????????????????????? | | ?????????????????????????????????????????????????? | | ?????????????????????????????????????????????????? | | ??????????????????????? ??????????????????????? | | ?????????????????????# ??????????????????????? | | ?????????????????????# #?????????????????????? | | ?????????????????????# ?????????????????????? | | ?????????????????????# #?????????????????????? | | ????????????????###??# #?????????????????????? | | ?????????????????"""?# #?????????????????????? | | ?????????????????? ## #?????????????????????? | | ??????????????????? #?????????????????????? | | ???????????????????? #?????????????????????? | | ?????????????????????; #?????????????????????? | | ????????????????????## #?#########???????????? | | ????????????????????#; ###"""""""#???????????? | | ?????????????????????# # #"" """"#???????????? | | ?????????????????????# # #" """ "#???????????? | | ????????????????????## @ #"#"" " " #???????????? | | ????????????????????#" "#???????????? | | ????????????????????# ""##??????????? | | ????????????????????# [ #??????????? | | ????????????????????# ##??????????? | | ????????????????????#" !!! "#???????????? | | ????????????????????#" !! ! "";#??????????? | | ????????????????????## !!! "" ""??????????? | | ????????????????????## " "##??????????? | | ????????????????????# """"??????????? | | ???????????????????## #???????????? | | ???????????????????# " """"#???????????? | | ???????????????????## #;######???????????? | | ???????????????????## ###???????????????? | | ????????????????#### # ##?????????????????? | | ????????????????"""" #??????????????????? | | ???????????????"" " " / ###??#########???????? | | ??????????????""" " ]!] #####"""""""""##????? | | ????????????" " ]!! " """ """"#????? | | ?????????? ]!! "" " #???? | | ?????????? " """#???? | | ??????????? " "#???? | | ??????????? " "##??? | | ???????????? ""###? | | ???????????? """""" """#? | +----------------------------------------------------+ Best States ------------- Heat Dissipation 25 Energy Generation 10 Energy Capacity 250 Matter Stores 300 Matter Capacity 300 Sight Range 16 Terrain Scan Density 10 Evasion (%) 50 Targeting Accuracy 6 Recoil Reduction 2 Item Schematics ----------------- None Robot Schematics ------------------ None Fabricated ------------ Nothing Alien Tech Used ----------------- None Achievements -------------- None Challenges ------------ None Game ------ Seed NetworkThiefLeg Manual? 0 Play Time 00:22:50 Cumulative 10.9 hours Start 2024.08.15 @ 13:51:04 End 2024.08.15 @ 14:10:14 Sessions 1 Manual Loads 0 Difficulty Rogue Special Mode None Game No. 10 Rogue 10 Adventurer 0 Explorer 0 Win Type - Total 0 Types 0/0/0/0/0/0/0/0/0 Lore% 9 Gallery% 14 Achievement% 23 Wizard Run 0 Options --------- Layout 1 ASCII 0 Keyboard 0 Movement Mouse Keybinds 0 Fullscreen 1 Font 24/Smallcaps Map View 50x35 Zoom Use 0% Tactical HUD 1 Map Filters NONE Filters NONE Steam 0 RUN: c6fefba2-a4ab-4b66-a905-276c90e427e1